fUST/lending_fUST_20250618
["ID","MTS","AMOUNT","RATE_DAILY","PERIOD"]
[366382517,1750223453848,-642.24,0.00022904,6]
[366382519,1750223453858,-460.0,0.00022904,6]
[366382521,1750223453867,-460.0,0.00022904,6]
[366382523,1750223453876,-373.23745892,0.00022904,6]
[366382525,1750223453886,-460.0,0.00022904,6]
[366382527,1750223453895,-460.0,0.00022904,6]
[366382528,1750223453904,-460.0,0.00022904,6]
[366382531,1750223453914,-460.0,0.00022904,6]
[366382532,1750223453923,-821.1,0.00022904,6]
[366382534,1750223453934,-460.0,0.00022904,6]
[366382537,1750223453943,-460.0,0.00022904,6]
[366382538,1750223453952,-460.0,0.00022904,6]
[366382541,1750223453962,-496.14,0.00022904,6]
[366382543,1750223453972,-460.0,0.00022904,6]
[366382544,1750223453982,-656.42,0.00022904,6]
[366382546,1750223453992,-460.0,0.00022904,6]
[366382548,1750223454002,-460.0,0.00022904,6]
[366382551,1750223454011,-460.0,0.00022904,6]
[366382552,1750223454021,-460.0,0.00022904,6]
[366382555,1750223454031,-605.67,0.00022904,6]
[366382556,1750223454041,-1046.18,0.00022904,6]
[366382559,1750223454051,-391.29155596,0.00022904,6]
[366382560,1750223454060,-326.34332906,0.00022904,6]
[366382562,1750223454070,-507.25,0.00022904,6]
[366382564,1750223454079,-3917.8,0.00022904,6]
[366382566,1750223454089,-559.21,0.00022904,6]
[366382568,1750223454098,-515.7,0.00022904,6]
[366382570,1750223454107,-460.0,0.00022904,6]
[366382571,1750223454116,-1238.71,0.00022904,6]
[366382572,1750223454126,-211.762869,0.0002299,7]
[366382573,1750223454135,-211.762869,0.0002299,7]
[366382574,1750223454144,-158.049088,0.0002299,7]
[366382575,1750223454153,-158.049088,0.0002299,7]
[366382576,1750223454162,-919.0,0.0002299,2]
[366382577,1750223454238,-187.49583439,0.00023,4]
[366382579,1750223454255,-160.0,0.00023,7]
[366382581,1750223454265,-1592.01320081,0.00023003,8]
[366382583,1750223454275,-460.0,0.00023013,6]
[366382584,1750223454284,-420.0,0.00023013,6]
[366382586,1750223454294,-183.04039142,0.00023013,6]
[366382589,1750223454304,-274.84,0.00023013,6]
[366382591,1750223454314,-460.0,0.00023013,6]
[366382592,1750223454323,-151.0,0.00023013,7]
[366382594,1750223454332,-460.0,0.00023013,6]
[366382596,1750223454342,-460.0,0.00023013,6]
[366382598,1750223454351,-825.78,0.00023013,6]
[366382600,1750223454361,-151.0,0.00023013,7]
[366382602,1750223454371,-857.72,0.00023013,6]
[366382604,1750223454381,-1291.82,0.00023013,6]
[366382606,1750223454390,-460.0,0.00023013,6]
[366382608,1750223454400,-472.93,0.00023013,6]
[366382610,1750223454409,-1253.95,0.00023013,6]
[366382612,1750223454419,-460.0,0.00023013,6]
[366382614,1750223454428,-233.119637,0.00023013,7]
[366382616,1750223454438,-233.119637,0.00023013,7]
[366382618,1750223454447,-460.0,0.00023013,6]
[366382620,1750223454458,-460.0,0.00023013,6]
[366382622,1750223454467,-642.24,0.00023013,6]
[366382624,1750223454476,-460.0,0.00023013,6]
[366382626,1750223454486,-581.72986806,0.00023013,6]
[366382628,1750223454496,-460.0,0.00023013,6]
[366382630,1750223454505,-460.0,0.00023013,6]
[366382632,1750223454514,-460.0,0.00023013,6]
[366382634,1750223454525,-821.1,0.00023013,6]
[366382636,1750223454535,-460.0,0.00023013,6]
[366382638,1750223454544,-321.29821569,0.00023013,6]
[366382640,1750223454554,-460.0,0.00023013,6]
[366382642,1750223454564,-496.14,0.00023013,6]
[366382644,1750223454573,-460.0,0.00023013,6]
[366382646,1750223454583,-656.42,0.00023013,6]
[366382648,1750223454593,-601.8,0.00023013,6]
[366382650,1750223454602,-460.0,0.00023013,6]
[366382652,1750223454611,-460.0,0.00023013,6]
[366382654,1750223454621,-460.0,0.00023013,6]
[366382656,1750223454631,-605.67,0.00023013,6]
[366382658,1750223454640,-1046.18,0.00023013,6]
[366382660,1750223454649,-507.25,0.00023013,6]
[366382662,1750223454659,-3917.8,0.00023013,6]
[366382664,1750223454668,-559.21,0.00023013,6]
[366382666,1750223454677,-515.7,0.00023013,6]
[366382668,1750223454686,-460.0,0.00023013,6]
[366382670,1750223454696,-1238.71,0.00023013,6]
[366382672,1750223454710,-158.0,0.00023014,7]
[366382674,1750223454722,-5000.0,0.00023015,2]
[366382676,1750223454731,-3605.06229595,0.00023015,2]
[366382678,1750223454741,-207.4,0.00023015,2]
[366382680,1750223454752,-168.0,0.00023022,2]
[366382682,1750223454763,-1500.0,0.00023068,2]
[366382684,1750223454772,-504.30613051,0.00023068,2]
[366382685,1750223454782,-460.0,0.00023123,6]
[366382687,1750223454792,-402.01194928,0.00023123,6]
[366382690,1750223454802,-460.0,0.00023123,6]
[366382691,1750223454812,-460.0,0.00023123,6]
[366382693,1750223454821,-825.78,0.00023123,6]
[366382695,1750223454831,-857.72,0.00023123,6]
[366382697,1750223454841,-1291.82,0.00023123,6]
[366382700,1750223454850,-453.53,0.00023123,6]
[366382701,1750223454859,-472.93,0.00023123,6]
[366382703,1750223454868,-1253.95,0.00023123,6]
[366382705,1750223454877,-460.0,0.00023123,6]
[366382707,1750223454887,-460.0,0.00023123,6]
[366382709,1750223454897,-460.0,0.00023123,6]
[366382711,1750223454906,-642.24,0.00023123,6]
[366382713,1750223454915,-460.0,0.00023123,6]
[366382715,1750223454925,-460.0,0.00023123,6]
[366382717,1750223454934,-460.0,0.00023123,6]
[366382719,1750223454943,-460.0,0.00023123,6]
[366382721,1750223454953,-821.1,0.00023123,6]
[366382723,1750223454963,-460.0,0.00023123,6]
[366382725,1750223454973,-460.0,0.00023123,6]
[366382727,1750223454982,-496.14,0.00023123,6]
[366382729,1750223454992,-460.0,0.00023123,6]
[366382731,1750223455002,-656.42,0.00023123,6]
[366382733,1750223455012,-460.0,0.00023123,6]
[366382735,1750223455021,-460.0,0.00023123,6]
[366382737,1750223455031,-460.0,0.00023123,6]
[366382739,1750223455040,-605.67,0.00023123,6]
[366382741,1750223455050,-1046.18,0.00023123,6]
[366382743,1750223455059,-507.25,0.00023123,6]
[366382745,1750223455068,-3917.8,0.00023123,6]
[366382747,1750223455078,-559.21,0.00023123,6]
[366382749,1750223455087,-515.7,0.00023123,6]
[366382751,1750223455096,-460.0,0.00023123,6]
[366382753,1750223455106,-1238.71,0.00023123,6]
[366382755,1750223455115,-3216.95,0.000232,7]
[366382757,1750223455126,-1592.01320081,0.0002321,8]
[366382759,1750223455136,-460.0,0.00023232,6]
[366382761,1750223455146,-460.0,0.00023232,6]
[366382763,1750223455155,-460.0,0.00023232,6]
[366382765,1750223455164,-825.78,0.00023232,6]
[366382767,1750223455173,-857.72,0.00023232,6]
[366382769,1750223455183,-1291.82,0.00023232,6]
[366382771,1750223455191,-472.93,0.00023232,6]
[366382773,1750223455201,-1253.95,0.00023232,6]
[366382775,1750223455210,-460.0,0.00023232,6]
[366382777,1750223455220,-460.0,0.00023232,6]
[366382779,1750223455230,-460.0,0.00023232,6]
[366382781,1750223455239,-642.24,0.00023232,6]
[366382783,1750223455249,-460.0,0.00023232,6]
[366382784,1750223455258,-460.0,0.00023232,6]
[366382786,1750223455268,-425.84670754,0.00023232,6]
[366382788,1750223455277,-460.0,0.00023232,6]
[366382790,1750223455286,-821.1,0.00023232,6]
[366382792,1750223455296,-460.0,0.00023232,6]
[366382794,1750223455305,-460.0,0.00023232,6]
[366382796,1750223455315,-496.14,0.00023232,6]
[366382798,1750223455325,-460.0,0.00023232,6]
[366382800,1750223455335,-656.42,0.00023232,6]
[366382802,1750223455344,-460.0,0.00023232,6]
[366382804,1750223455354,-460.0,0.00023232,6]
[366382806,1750223455363,-552.35,0.00023232,6]
[366382808,1750223455373,-605.67,0.00023232,6]
[366382810,1750223455382,-1046.18,0.00023232,6]
[366382812,1750223455391,-507.25,0.00023232,6]
[366382814,1750223455401,-3917.8,0.00023232,6]
[366382816,1750223455410,-559.21,0.00023232,6]
[366382818,1750223455420,-515.7,0.00023232,6]
[366382820,1750223455429,-460.0,0.00023232,6]
[366382822,1750223455438,-1238.71,0.00023232,6]
[366382824,1750223455447,-1800.0,0.00023268,2]
[366382826,1750223455457,-687.1,0.00023277,3]
[366382828,1750223455467,-343.56,0.00023277,3]
[366382830,1750223455477,-160.0,0.00023286,2]
[366382832,1750223455486,-88857.78,0.000233,7]
[366382834,1750223455495,-151.0,0.000233,7]
[366382836,1750223455504,-151.0,0.000233,7]
[366382838,1750223455513,-151.0,0.000233,7]
[366382840,1750223455522,-233.119637,0.000233,7]
[366382842,1750223455532,-233.119637,0.000233,7]
[366382844,1750223455542,-211.762869,0.000233,7]
[366382846,1750223455551,-211.762869,0.000233,7]
[366382848,1750223455561,-229.98435572,0.000233,3]
[366382850,1750223455571,-158.049088,0.000233,7]
[366382852,1750223455580,-158.049088,0.000233,7]
[366382854,1750223455589,-460.0,0.00023342,6]
[366382856,1750223455599,-460.0,0.00023342,6]
[366382858,1750223455608,-370.0,0.00023342,6]
[366382860,1750223455617,-825.78,0.00023342,6]
[366382862,1750223455626,-857.72,0.00023342,6]
[366382864,1750223455635,-1291.82,0.00023342,6]
[366382865,1750223455645,-472.93,0.00023342,6]
[366382867,1750223455655,-1253.95,0.00023342,6]
[366382869,1750223455664,-460.0,0.00023342,6]
[366382871,1750223455673,-460.0,0.00023342,6]
[366382873,1750223455683,-460.0,0.00023342,6]
[366382875,1750223455692,-642.24,0.00023342,6]
[366382877,1750223455705,-199.56593028,0.00023342,6]
[366382879,1750223455715,-460.0,0.00023342,6]
[366382881,1750223455725,-460.0,0.00023342,6]
[366382883,1750223455734,-821.1,0.00023342,6]
[366382885,1750223455745,-460.0,0.00023342,6]
[366382887,1750223455754,-460.0,0.00023342,6]
[366382889,1750223455764,-496.14,0.00023342,6]
[366382891,1750223455776,-460.0,0.00023342,6]
[366382893,1750223455786,-656.42,0.00023342,6]
[366382903,1750223455870,-460.0,0.00023342,6]
[366382905,1750223455879,-460.0,0.00023342,6]
[366382907,1750223455888,-605.67,0.00023342,6]
[366382909,1750223455898,-1046.18,0.00023342,6]
[366382911,1750223455908,-507.25,0.00023342,6]
[366382913,1750223455917,-3917.8,0.00023342,6]
[366382915,1750223455926,-559.21,0.00023342,6]
[366382917,1750223455935,-515.7,0.00023342,6]
[366382919,1750223455945,-460.0,0.00023342,6]
[366382921,1750223455954,-1238.71,0.00023342,6]
[366382923,1750223455963,-507.23650433,0.00023368,2]
[366382925,1750223455973,-1500.0,0.00023368,2]
[366382927,1750223455982,-1500.0,0.00023368,2]
[366382929,1750223455992,-150.0,0.00023373,2]
[366382931,1750223456001,-115030.26,0.000234,2]
[366382933,1750223456011,-151.0,0.000234,7]
[366382935,1750223456020,-233.119637,0.000234,7]
[366382937,1750223456030,-233.119637,0.000234,7]
[366382939,1750223456039,-211.762869,0.000234,7]
[366382941,1750223456049,-211.762869,0.000234,7]
[366382943,1750223456058,-158.049088,0.000234,7]
[366382945,1750223456068,-1592.01320081,0.00023417,9]
[366382947,1750223456078,-500.59896885,0.00023427,2]
[366382949,1750223456087,-587.0,0.00023447,2]
[366382951,1750223456096,-460.0,0.00023452,6]
[366382953,1750223456105,-460.0,0.00023452,6]
[366382955,1750223456114,-825.78,0.00023452,6]
[366382957,1750223456124,-857.72,0.00023452,6]
[366382959,1750223456134,-1291.82,0.00023452,6]
[366382961,1750223456143,-472.93,0.00023452,6]
[366382963,1750223456152,-1253.95,0.00023452,6]
[366382965,1750223456161,-223.80208858,0.00023452,6]
[366382967,1750223456171,-508.1850128,0.00023452,6]
[366382969,1750223456180,-460.0,0.00023452,6]
[366382971,1750223456189,-642.24,0.00023452,6]
[366382973,1750223456198,-186.98414928,0.00023452,6]
[366382975,1750223456207,-246.24773408,0.00023452,6]
[366382977,1750223456217,-821.1,0.00023452,6]
[366382979,1750223456225,-460.0,0.00023452,6]
[366382981,1750223456235,-460.0,0.00023452,6]
[366382983,1750223456244,-496.14,0.00023452,6]
[366382985,1750223456253,-460.0,0.00023452,6]
[366382987,1750223456263,-656.42,0.00023452,6]
[366382989,1750223456272,-498.13993109,0.00023452,6]
[366382991,1750223456281,-460.0,0.00023452,6]
[366382993,1750223456290,-605.67,0.00023452,6]
[366382995,1750223456300,-1046.18,0.00023452,6]
[366382997,1750223456309,-507.25,0.00023452,6]
[366382999,1750223456320,-3917.8,0.00023452,6]
[366383001,1750223456329,-559.21,0.00023452,6]
[366383003,1750223456338,-515.7,0.00023452,6]
[366383005,1750223456348,-460.0,0.00023452,6]
[366383006,1750223456357,-1238.71,0.00023452,6]
[366383007,1750223456366,-964.0,0.00023469,2]
[366383008,1750223456375,-653.0,0.00023469,2]
[366383009,1750223456384,-2075.0,0.00023469,2]
[366383010,1750223456394,-792.85,0.000235,7]
[366383011,1750223456403,-156.8092932,0.00023507,2]
[366383012,1750223456412,-153.0,0.00023507,2]
[366383013,1750223456421,-1607.46,0.00023523,2]
[366383014,1750223456430,-362.68008489,0.00023561,6]
[366383015,1750223456439,-460.0,0.00023561,6]
[366383016,1750223456448,-825.78,0.00023561,6]
[366383017,1750223456457,-857.72,0.00023561,6]
[366383018,1750223456466,-1291.82,0.00023561,6]
[366383019,1750223456475,-472.93,0.00023561,6]
[366383020,1750223456484,-1253.95,0.00023561,6]
[366383021,1750223456493,-642.24,0.00023561,6]
[366383022,1750223456502,-460.0,0.00023561,6]
[366383023,1750223456511,-821.1,0.00023561,6]
[366383024,1750223456520,-460.0,0.00023561,6]
[366383025,1750223456529,-460.0,0.00023561,6]
[366383026,1750223456538,-496.14,0.00023561,6]
[366383027,1750223456547,-460.0,0.00023561,6]
[366383028,1750223456557,-656.42,0.00023561,6]
[366383029,1750223456566,-460.0,0.00023561,6]
[366383030,1750223456575,-605.67,0.00023561,6]
[366383031,1750223456584,-1046.18,0.00023561,6]
[366383032,1750223456593,-507.25,0.00023561,6]
[366383033,1750223456602,-3917.8,0.00023561,6]
[366383034,1750223456612,-559.21,0.00023561,6]
[366383035,1750223456621,-515.7,0.00023561,6]
[366383036,1750223456630,-386.08,0.00023561,6]
[366383037,1750223456639,-1238.71,0.00023561,6]
[366383038,1750223456648,-5000.0,0.00023563,2]
[366383039,1750223456658,-1592.01320081,0.00023624,9]
[366383041,1750223456667,-919.0,0.00023646,2]
[366383043,1750223456676,-460.0,0.00023671,6]
[366383045,1750223456686,-825.78,0.00023671,6]
[366383047,1750223456696,-857.72,0.00023671,6]
[366383049,1750223456709,-1291.82,0.00023671,6]
[366383051,1750223456719,-472.93,0.00023671,6]
[366383053,1750223456728,-1253.95,0.00023671,6]
[366383055,1750223456737,-642.24,0.00023671,6]
[366383057,1750223456746,-460.0,0.00023671,6]
[366383059,1750223456757,-821.1,0.00023671,6]
[366383061,1750223456767,-460.0,0.00023671,6]
[366383063,1750223456776,-460.0,0.00023671,6]
[366383065,1750223456786,-496.14,0.00023671,6]
[366383066,1750223456795,-460.0,0.00023671,6]
[366383068,1750223456804,-656.42,0.00023671,6]
[366383070,1750223456814,-460.0,0.00023671,6]
[366383072,1750223456824,-605.67,0.00023671,6]
[366383074,1750223456833,-1046.18,0.00023671,6]
[366383076,1750223456843,-507.25,0.00023671,6]
[366383078,1750223456853,-3917.8,0.00023671,6]
[366383080,1750223456862,-559.21,0.00023671,6]
[366383082,1750223456871,-515.7,0.00023671,6]
[366383084,1750223456880,-1238.71,0.00023671,6]
[366383086,1750223456889,-460.0,0.0002378,6]
[366383088,1750223456898,-825.78,0.0002378,6]
[366383090,1750223456907,-857.72,0.0002378,6]
[366383092,1750223456916,-1291.82,0.0002378,6]
[366383094,1750223456925,-472.93,0.0002378,6]
[366383096,1750223456935,-1253.95,0.0002378,6]
[366383098,1750223456945,-642.24,0.0002378,6]
[366383100,1750223456954,-460.0,0.0002378,6]
[366383102,1750223456964,-821.1,0.0002378,6]
[366383104,1750223456974,-460.0,0.0002378,6]
[366383106,1750223456984,-460.0,0.0002378,6]
[366383108,1750223456994,-496.14,0.0002378,6]
[366383110,1750223457004,-298.04,0.0002378,6]
[366383112,1750223457013,-656.42,0.0002378,6]
[366383114,1750223457022,-460.0,0.0002378,6]
[366383116,1750223457031,-605.67,0.0002378,6]
[366383118,1750223457041,-1046.18,0.0002378,6]
[366383120,1750223457050,-507.25,0.0002378,6]
[366383122,1750223457060,-3917.8,0.0002378,6]
[366383124,1750223457069,-559.21,0.0002378,6]
[366383126,1750223457078,-515.7,0.0002378,6]
[366383128,1750223457087,-1238.71,0.0002378,6]
[366383130,1750223457097,-2400.0,0.00023816,2]
[366383132,1750223457106,-1592.01320081,0.00023831,10]
[366383134,1750223457116,-460.0,0.0002389,6]
[366383136,1750223457125,-825.78,0.0002389,6]
[366383138,1750223457134,-857.72,0.0002389,6]
[366383140,1750223457143,-1291.82,0.0002389,6]
[366383142,1750223457152,-472.93,0.0002389,6]
[366383144,1750223457162,-1253.95,0.0002389,6]
[366383146,1750223457171,-642.24,0.0002389,6]
[366383148,1750223457180,-460.0,0.0002389,6]
[366383150,1750223457190,-821.1,0.0002389,6]
[366383152,1750223457200,-519.0725951,0.0002389,6]
[366383154,1750223457209,-472.28986018,0.0002389,6]
[366383156,1750223457219,-496.14,0.0002389,6]
[366383158,1750223457228,-656.42,0.0002389,6]
[366383160,1750223457238,-460.0,0.0002389,6]
[366383169,1750223457314,-605.67,0.0002389,6]
[366383171,1750223457324,-1046.18,0.0002389,6]
[366383173,1750223457334,-507.25,0.0002389,6]
[366383175,1750223457343,-3917.8,0.0002389,6]
[366383177,1750223457352,-559.21,0.0002389,6]
[366383179,1750223457361,-515.7,0.0002389,6]
[366383181,1750223457371,-1238.71,0.0002389,6]
[366383183,1750223457380,-150.0,0.00023905,2]
[366383185,1750223457389,-150.0,0.00023916,2]
[366383187,1750223457398,-150.0,0.00023916,2]
[366383189,1750223457408,-2000.0,0.00023916,2]
[366383191,1750223457417,-885.76134592,0.00023916,2]
[366383193,1750223457427,-250.0,0.00023921,2]
[366383195,1750223457436,-919.0,0.00023962,2]
[366383196,1750223457445,-3000.0,0.00024,2]
[366383198,1750223457454,-460.0,0.00024,6]
[366383200,1750223457464,-825.78,0.00024,6]
[366383202,1750223457473,-857.72,0.00024,6]
[366383204,1750223457482,-1291.82,0.00024,6]
[366383206,1750223457491,-472.93,0.00024,6]
[366383208,1750223457501,-1253.95,0.00024,6]
[366383210,1750223457510,-642.24,0.00024,6]
[366383212,1750223457520,-460.0,0.00024,6]
[366383214,1750223457529,-424.70586748,0.00024,7]
[366383216,1750223457540,-821.1,0.00024,6]
[366383219,1750223457550,-496.14,0.00024,6]
[366383221,1750223457559,-656.42,0.00024,6]
[366383222,1750223457569,-835.98428123,0.00024,7]
[366383224,1750223457578,-460.0,0.00024,6]
[366383226,1750223457588,-605.67,0.00024,6]
[366383229,1750223457598,-1046.18,0.00024,6]
[366383231,1750223457608,-507.25,0.00024,6]
[366383232,1750223457617,-3917.8,0.00024,6]
[366383234,1750223457629,-559.21,0.00024,6]
[366383237,1750223457638,-515.7,0.00024,6]
[366383239,1750223457648,-229.98435572,0.00024,7]
[366383240,1750223457657,-1238.71,0.00024,6]
[366383242,1750223457667,-2505.34829352,0.00024009,2]
[366383245,1750223457677,-3000.0,0.0002401,2]
[366383246,1750223457686,-500.0,0.00024014,2]
[366383248,1750223457696,-3000.0,0.0002402,2]
[366383250,1750223457707,-211.762869,0.0002402,7]
[366383253,1750223457717,-211.762869,0.0002402,7]
[366383255,1750223457726,-158.049088,0.0002402,7]
[366383256,1750223457735,-3000.0,0.0002403,2]
[366383259,1750223457746,-195.985548,0.0002403,7]
[366383260,1750223457756,-1592.01320081,0.00024038,10]
[366383262,1750223457765,-3603.446011,0.0002404,2]
[366383264,1750223457774,-151.0,0.0002404,7]
[366383266,1750223457785,-233.119637,0.0002404,7]
[366383268,1750223457795,-233.119637,0.0002404,7]
[366383270,1750223457804,-1147.54,0.00024089,4]
[366383272,1750223457814,-272.96,0.00024109,6]
[366383274,1750223457823,-825.78,0.00024109,6]
[366383276,1750223457831,-857.72,0.00024109,6]
[366383278,1750223457841,-1291.82,0.00024109,6]
[366383280,1750223457850,-472.93,0.00024109,6]
[366383282,1750223457860,-1253.95,0.00024109,6]
[366383284,1750223457869,-642.24,0.00024109,6]
[366383286,1750223457878,-460.0,0.00024109,6]
[366383288,1750223457888,-821.1,0.00024109,6]
[366383290,1750223457897,-496.14,0.00024109,6]
[366383292,1750223457906,-656.42,0.00024109,6]
[366383294,1750223457916,-154.68422134,0.00024109,6]
[366383296,1750223457925,-605.67,0.00024109,6]
[366383298,1750223457934,-1046.18,0.00024109,6]
[366383300,1750223457944,-507.25,0.00024109,6]
[366383302,1750223457953,-3917.8,0.00024109,6]
[366383304,1750223457962,-559.21,0.00024109,6]
[366383306,1750223457973,-515.7,0.00024109,6]
[366383308,1750223457982,-1238.71,0.00024109,6]
[366383310,1750223457991,-5000.0,0.00024111,2]
[366383312,1750223458000,-2505.34829344,0.00024129,2]
[366383314,1750223458009,-158.80186321,0.00024164,2]
[366383316,1750223458018,-363.19932225,0.0002418,2]
[366383318,1750223458029,-2000.0,0.00024189,4]
[366383320,1750223458038,-729.7030954,0.00024192,2]
[366383322,1750223458047,-1322.66,0.000242,2]
[366383324,1750223458056,-151.0,0.00024214,7]
[366383326,1750223458066,-825.78,0.00024219,6]
[366383328,1750223458075,-857.72,0.00024219,6]
[366383330,1750223458085,-1291.82,0.00024219,6]
[366383332,1750223458095,-472.93,0.00024219,6]
[366383333,1750223458104,-1253.95,0.00024219,6]
[366383336,1750223458113,-642.24,0.00024219,6]
[366383337,1750223458122,-460.0,0.00024219,6]
[366383339,1750223458133,-821.1,0.00024219,6]
[366383341,1750223458142,-496.14,0.00024219,6]
[366383343,1750223458151,-656.42,0.00024219,6]
[366383345,1750223458161,-605.67,0.00024219,6]
[366383347,1750223458170,-1046.18,0.00024219,6]
[366383349,1750223458180,-507.25,0.00024219,6]
[366383351,1750223458189,-3917.8,0.00024219,6]
[366383353,1750223458198,-559.21,0.00024219,6]
[366383355,1750223458208,-515.7,0.00024219,6]
[366383357,1750223458217,-1238.71,0.00024219,6]
[366383359,1750223458227,-1592.01320081,0.00024245,10]
[366383362,1750223458237,-2505.34829344,0.00024249,2]
[366383363,1750223458246,-3000.0,0.00024262,4]
[366383365,1750223458255,-919.0,0.00024286,2]
[366383367,1750223458265,-3216.95,0.000243,7]
[366383369,1750223458274,-539.130889,0.00024303,3]
[366383371,1750223458284,-823.0,0.00024319,2]
[366383373,1750223458293,-151.0,0.0002432,7]
[366383375,1750223458302,-4000.0,0.00024321,4]
[366383377,1750223458311,-825.78,0.00024328,6]
[366383379,1750223458320,-857.72,0.00024328,6]
[366383381,1750223458331,-1291.82,0.00024328,6]
[366383383,1750223458340,-472.93,0.00024328,6]
[366383385,1750223458349,-1253.95,0.00024328,6]
[366383387,1750223458359,-642.24,0.00024328,6]
[366383389,1750223458368,-496.99,0.00024328,6]
[366383391,1750223458377,-821.1,0.00024328,6]
[366383393,1750223458386,-496.14,0.00024328,6]
[366383395,1750223458396,-656.42,0.00024328,6]
[366383397,1750223458405,-605.67,0.00024328,6]
[366383399,1750223458415,-1046.18,0.00024328,6]
[366383401,1750223458424,-507.25,0.00024328,6]
[366383403,1750223458433,-3917.8,0.00024328,6]
[366383405,1750223458442,-559.21,0.00024328,6]
[366383407,1750223458451,-515.7,0.00024328,6]
[366383409,1750223458460,-1238.71,0.00024328,6]
[366383411,1750223458469,-177.1504183,0.00024329,2]
[366383413,1750223458479,-306.0,0.00024329,2]
[366383415,1750223458488,-158.9908236,0.00024329,2]
[366383417,1750223458497,-574.2153043,0.00024329,2]
[366383419,1750223458506,-574.2153043,0.00024329,2]
[366383421,1750223458515,-158.9908236,0.00024329,2]
[366383423,1750223458524,-177.1504183,0.00024329,2]
[366383425,1750223458533,-158.9908236,0.00024329,2]
[366383427,1750223458542,-177.1504183,0.00024329,2]
[366383429,1750223458552,-574.2153043,0.00024329,2]
[366383431,1750223458561,-291.82944297,0.00024353,2]
[366383433,1750223458571,-3000.0,0.00024364,2]
[366383435,1750223458580,-2505.34829344,0.00024369,2]
[366383437,1750223458589,-215.0738,0.00024384,2]
[366383446,1750223458665,-5000.0,0.00024386,4]
[366383448,1750223458674,-88857.78,0.000244,7]
[366383450,1750223458684,-198.093006,0.000244,7]
[366383452,1750223458693,-294.118235,0.000244,2]
[366383454,1750223458705,-233.119637,0.000244,7]
[366383456,1750223458715,-233.119637,0.000244,7]
[366383458,1750223458724,-211.762869,0.000244,7]
[366383460,1750223458733,-211.762869,0.000244,7]
[366383462,1750223458742,-158.049088,0.000244,7]
[366383464,1750223458753,-1000.0,0.00024408,4]
[366383466,1750223458762,-151.0,0.00024427,7]
[366383468,1750223458772,-825.80150689,0.00024438,6]
[366383470,1750223458782,-857.89754387,0.00024438,6]
[366383472,1750223459000,-1291.83026371,0.00024438,6]
[366383474,1750223459010,-472.99486526,0.00024438,6]
[366383476,1750223459019,-1254.1,0.00024438,6]
[366383478,1750223459029,-642.33,0.00024438,6]
[366383480,1750223459039,-821.18062391,0.00024438,6]
[366383482,1750223459049,-496.32,0.00024438,6]
[366383484,1750223459058,-656.47138144,0.00024438,6]
[366383486,1750223459069,-605.89829334,0.00024438,6]
[366383488,1750223459079,-1046.20775253,0.00024438,6]